bitfinex/quotes_ETHUSD_20250905
["timestamp","ask_amount","ask_price","bid_price","bid_amount"]
[1757070481195,0.0262,4420.8,4420.7,13.90682911]
[1757070481399,0.0262,4420.8,4420.7,14.21452911]
[1757070482314,0.0262,4420.8,4420.7,14.30516023]
[1757070483219,0.0262,4420.8,4420.7,13.99746023]
[1757070483402,0.3361,4420.8,4420.7,13.99746023]
[1757070483601,0.7926,4420.8,4420.7,13.99746023]
[1757070483811,1.2671,4420.8,4420.7,13.99746023]
[1757070484316,0.002,4421.1,4421.0,6.05393168]
[1757070484516,0.002,4421.1,4421.0,9.83493168]
[1757070484728,0.002,4421.1,4421.0,7.71853168]
[1757070484941,0.002,4421.1,4421.0,8.26475561]
[1757070485405,0.002,4421.1,4421.0,8.36475561]
[1757070485605,0.002,4421.1,4421.0,10.07403022]
[1757070486517,0.002,4421.1,4421.0,9.61843022]
[1757070487932,0.002,4421.1,4421.0,9.15533022]
[1757070488226,0.002,4421.1,4421.0,8.84763022]
[1757070488530,1.2429,4421.1,4421.0,7.13835561]
[1757070488902,1.2421,4421.1,4421.0,7.13835561]
[1757070489432,0.3111,4421.1,4421.0,7.03835561]
[1757070489632,0.7844,4421.1,4421.0,7.03835561]
[1757070490835,0.3111,4421.1,4421.0,7.03835561]
[1757070491135,0.7844,4421.1,4421.0,7.03835561]
[1757070491435,1.2698,4421.1,4421.0,7.03835561]
[1757070492708,1.2698,4421.1,4421.0,3.25735561]
[1757070492915,1.2698,4421.1,4421.0,6.94673168]
[1757070504185,0.0012,4421.1,4421.0,7.24973168]
[1757070505240,0.0012,4421.1,4421.0,6.94673168]
[1757070507781,0.0012,4421.1,4421.0,7.72923168]
[1757070507981,0.0012,4421.1,4421.0,9.33135491]
[1757070513683,0.002,4421.5,4421.0,9.63312323]
[1757070513877,0.002,4421.5,4421.4,3.05372705]
[1757070514049,0.002,4421.5,4421.4,6.96914432]
[1757070514244,0.002,4421.5,4421.4,8.16532705]
[1757070514458,0.002,4421.5,4421.4,9.73910812]
[1757070515272,0.002,4422.0,4421.9,3.05347131]
[1757070515573,0.002,4422.0,4421.9,8.49947131]
[1757070515876,0.002,4422.0,4421.9,9.49477131]
[1757070516280,0.002,4422.0,4421.9,9.93107131]
[1757070516446,0.002,4422.0,4421.9,11.15939249]
[1757070516652,0.0012,4422.0,4421.9,10.72309249]
[1757070519187,0.2886,4422.0,4421.9,5.36859249]
[1757070519385,0.2886,4422.0,4421.9,9.03479249]
[1757070519889,0.2886,4422.0,4421.9,9.82679249]
[1757070520688,0.0012,4422.0,4421.9,10.12119249]
[1757070521255,0.0012,4422.0,4421.9,9.82679249]
[1757070521453,0.3072,4422.0,4421.9,9.82679249]
[1757070521648,0.2572,4422.0,4421.9,9.82679249]
[1757070522054,0.7027,4422.0,4421.9,9.82679249]
[1757070522383,0.7027,4422.0,4421.9,9.72679249]
[1757070522795,0.7276,4422.0,4421.9,8.49847131]
[1757070522972,0.7027,4422.0,4421.9,8.49847131]
[1757070523993,0.002,4422.1,4422.0,3.05342017]
[1757070524473,0.308,4422.1,4422.0,3.05342017]
[1757070524982,0.002,4422.1,4422.0,3.34782017]
[1757070525287,0.002,4422.1,4422.0,5.11740333]
[1757070525955,0.002,4422.1,4422.0,5.58360333]
[1757070526154,0.002,4422.1,4422.0,6.02340333]
[1757070526386,0.002,4422.1,4422.0,5.58360333]
[1757070526591,0.002,4422.1,4422.0,6.12340333]
[1757070528458,0.002,4422.1,4422.0,5.68360333]
[1757070529259,0.002,4422.1,4422.0,5.79640333]
[1757070529689,0.002,4422.1,4422.0,5.33020333]
[1757070531698,0.002,4422.1,4422.0,9.61471689]
[1757070532380,1e-08,4422.4,4422.1,3.792]
[1757070532598,1e-08,4422.4,4422.3,6.16606676]
[1757070532894,1e-08,4422.4,4422.3,10.74498032]
[1757070533685,1e-08,4422.4,4422.3,11.21118032]
[1757070534896,1e-08,4422.4,4422.3,10.74498032]
[1757070535074,1e-08,4422.4,4422.3,13.01288829]
[1757070535274,1e-08,4422.4,4422.3,13.1806662]
[1757070535881,1e-08,4422.4,4422.3,13.2806662]
[1757070536483,1e-08,4422.4,4422.3,12.9862662]
[1757070537105,1e-08,4422.4,4422.3,13.2806662]
[1757070537474,1e-08,4422.4,4422.3,17.5606662]
[1757070538011,1e-08,4422.4,4422.3,14.18215264]
[1757070538308,1e-08,4422.4,4422.3,18.4666662]
[1757070539419,1e-08,4422.4,4422.3,18.0268662]
[1757070539711,1e-08,4422.4,4422.3,17.5606662]
[1757070539888,1e-08,4422.4,4422.3,17.2662662]
[1757070540378,1e-08,4422.4,4422.3,17.5606662]
[1757070540795,0.30600001,4422.4,4422.3,12.98175264]
[1757070540999,1e-08,4422.4,4422.3,8.99615264]
[1757070541205,1e-08,4422.4,4422.3,13.68015264]
[1757070541412,1e-08,4422.4,4422.3,13.24035264]
[1757070541707,1e-08,4422.4,4422.3,13.68015264]
[1757070542130,0.4704,4423.2,4422.3,13.68015264]
[1757070542131,0.09059315,4423.5,4422.9,3.05296]
[1757070542403,0.4704,4424.0,4422.9,12.89427356]
[1757070542609,0.4704,4424.0,4422.9,14.09467356]
[1757070542980,0.9159,4424.6,4423.7,3.05255112]
[1757070543175,0.025,4424.8,4423.7,15.80367019]
[1757070543176,1e-08,4423.8,4423.7,15.80367019]
[1757070543387,1e-08,4423.8,4423.7,19.21634547]
[1757070543594,1e-08,4423.8,4423.7,19.87733862]
[1757070543776,1e-08,4423.8,4423.7,14.68682506]
[1757070543998,1e-08,4423.8,4423.7,15.59282506]
[1757070544592,0.02420001,4424.8,4424.7,3.05204022]
[1757070544790,0.02420001,4424.8,4424.7,8.50204022]
[1757070545088,0.77570001,4424.8,4424.7,8.50204022]
[1757070545507,1.24610001,4424.8,4424.7,8.50204022]
[1757070546414,1.24610001,4424.8,4424.7,5.449]
[1757070546781,1.24610001,4424.8,4424.7,6.241]
[1757070546983,0.80060001,4424.8,4424.7,8.50104022]
[1757070547301,1.24610001,4424.8,4424.7,8.50104022]
[1757070548083,1.24610001,4424.8,4424.7,10.00560699]
[1757070548084,0.33020001,4424.8,4424.7,10.00560699]
[1757070548278,0.02420001,4424.8,4424.7,10.00560699]
[1757070548483,0.33020001,4424.8,4424.7,10.00560699]
[1757070549179,0.02420001,4424.8,4424.7,10.00560699]
[1757070549375,0.02420001,4424.8,4424.7,13.31180699]
[1757070549376,1e-08,4424.8,4424.7,13.31180699]
[1757070549706,1e-08,4424.8,4424.7,14.20410699]
[1757070549889,1e-08,4424.8,4424.7,13.76400699]
[1757070550221,1e-08,4424.8,4424.7,13.31180699]
[1757070550393,1e-08,4424.8,4424.7,13.41180699]
[1757070551676,1e-08,4424.8,4424.7,13.58517906]
[1757070551881,0.30460001,4424.8,4424.7,13.10760699]
[1757070552084,0.77440001,4424.8,4424.7,10.10760699]
[1757070552375,0.30460001,4424.8,4424.7,10.10760699]
[1757070552579,0.30660001,4424.8,4424.7,10.10760699]
[1757070552817,1.24540001,4424.8,4424.7,7.81104022]
[1757070553018,1.24540001,4424.8,4424.7,8.60304022]
[1757070553203,1.24540001,4424.8,4424.7,7.82384022]
[1757070554015,1.24540001,4424.8,4424.7,8.61584022]
[1757070554415,1.24540001,4424.8,4424.7,8.61684022]
[1757070554616,0.00200001,4424.8,4424.7,8.61684022]
[1757070554915,0.77640001,4424.8,4424.7,10.13298699]
[1757070555086,1.24540001,4424.8,4424.7,10.13298699]
[1757070555414,1.24540001,4424.8,4424.7,7.82484022]
[1757070556110,1.24540001,4424.8,4424.7,8.61684022]
[1757070556486,1.24540001,4424.8,4424.7,8.61884022]
[1757070557545,1.24540001,4424.8,4424.7,1.7788]
[1757070557695,1.24540001,4424.8,4424.7,5.453]
[1757070558316,0.025,4426.8,4424.8,3.0]
[1757070558517,0.025,4426.8,4426.7,3.05101913]
[1757070558695,0.025,4426.8,4426.7,8.64101913]
[1757070558896,0.3296,4426.8,4426.7,8.64101913]
[1757070559096,0.7994,4426.8,4426.7,8.85067901]
[1757070559299,0.7994,4426.8,4426.7,9.32047901]
[1757070559496,0.7994,4426.8,4426.7,8.85067901]
[1757070560915,0.7994,4426.8,4426.7,4.13165988]
[1757070560916,1.2684,4426.8,4426.7,4.13165988]
[1757070561215,1.2684,4426.8,4426.7,3.922]
[1757070562720,3.0,4426.7,4426.0,1.665]
[1757070562886,0.3046,4426.1,4426.0,1.665]
[1757070563087,0.3046,4426.1,4426.0,5.585]
[1757070563088,1.2434,4426.1,4426.0,5.585]
[1757070563288,0.7744,4426.1,4426.0,5.585]
[1757070563789,0.7744,4426.1,4426.0,5.79465989]
[1757070564215,1.2434,4426.1,4426.0,5.79465989]
[1757070564813,0.7744,4426.1,4426.0,5.79465989]
[1757070565200,0.3046,4426.1,4426.0,8.8460363]
[1757070565598,0.7744,4426.1,4426.0,8.8460363]
[1757070566001,0.7744,4426.1,4426.0,6.58665989]
[1757070566732,0.7744,4426.1,4426.0,8.8460363]
[1757070568430,0.7744,4426.1,4426.0,8.9588363]
[1757070568793,0.7744,4426.1,4426.0,6.69945989]
[1757070570098,6.50272536,4426.1,4426.0,0.20965989]
[1757070570523,7.18192784,4426.1,4426.0,0.20965989]
[1757070571593,2.25942746,4425.9,4425.8,3.914]
[1757070571799,2.25942746,4425.9,4425.8,0.21030338]
[1757070571994,5.25947851,4425.8,4424.8,0.025]
[1757070572230,2.25949803,4425.8,4424.8,0.025]
[1757070572402,5.56373807,4424.9,4424.8,0.025]
[1757070572812,6.50253807,4424.9,4424.8,0.025]
[1757070574139,10.41653807,4424.9,4424.8,0.025]
[1757070575945,2.26004022,4424.7,4424.6,0.001]
[1757070576349,6.50344022,4424.7,4424.6,0.001]
[1757070580460,10.41144022,4424.7,4424.6,0.001]
[1757070583844,5.56464022,4424.7,4424.6,0.001]
[1757070584046,5.26004022,4424.7,4424.6,0.001]
[1757070584946,5.26004022,4424.7,4424.6,0.3074]
[1757070586241,2.26004022,4424.7,4424.6,0.3074]
[1757070586667,2.56634022,4424.7,4424.6,0.001]
[1757070586879,9.47634022,4424.7,4424.6,0.001]
[1757070588272,9.91404022,4424.7,4424.6,0.001]
[1757070588479,9.47634022,4424.7,4424.6,0.001]
[1757070588680,9.91404022,4424.7,4424.6,0.001]
[1757070590063,9.47634022,4424.7,4424.6,0.001]
[1757070590290,2.26024455,4424.3,4422.0,0.001]
[1757070590484,2.26024455,4424.3,4422.5,0.488]
[1757070590485,3.0,4423.8,4422.5,0.488]
[1757070590684,5.56726,4422.9,4422.5,0.488]
[1757070590864,9.47526,4422.9,4422.5,0.488]
[1757070591204,9.47526,4422.9,4422.0,0.001]
[1757070591372,9.47526,4422.9,4422.8,1e-08]
[1757070591373,10.40156,4422.9,4422.8,1e-08]
[1757070591697,2.26121562,4422.4,4422.0,0.001]
[1757070591897,9.17021562,4422.4,4422.0,0.001]
[1757070592086,9.91421562,4422.4,4422.0,0.001]
[1757070592465,10.40281562,4422.4,4422.0,0.001]
[1757070592667,2.26136903,4422.1,4422.0,0.001]
[1757070592901,2.26162475,4421.6,4421.5,0.001]
[1757070593197,11.14392475,4421.6,4421.5,0.001]
[1757070593496,12.07022475,4421.6,4421.5,0.001]
[1757070594070,2.26198285,4420.9,4420.8,1e-08]
[1757070594305,9.17298285,4420.9,4420.8,1e-08]
[1757070594500,10.40558285,4420.9,4420.8,1e-08]
[1757070594685,10.76909279,4420.9,4420.8,1e-08]
[1757070595064,10.76909279,4420.9,4419.2,0.001]
[1757070595065,2.26236537,4420.2,4419.2,0.001]
[1757070595268,2.262597,4419.7,4419.2,0.001]
[1757070595467,9.482897,4419.7,4419.2,0.001]
[1757070595668,10.409197,4419.7,4419.2,0.001]
[1757070596106,2.26300663,4418.9,4418.8,1e-08]
[1757070596307,10.84400663,4418.9,4418.8,1e-08]
[1757070596468,12.07660663,4418.9,4418.8,1e-08]
[1757070597095,11.58900663,4418.9,4418.8,1e-08]
[1757070597299,7.67300663,4418.9,4418.8,1e-08]
[1757070597491,11.58900663,4418.9,4418.8,1e-08]
[1757070600405,11.58820663,4418.9,4418.8,1e-08]
[1757070601172,12.07680663,4418.9,4418.8,1e-08]
[1757070602609,11.58820663,4418.9,4418.8,1e-08]
[1757070602998,7.67220663,4418.9,4418.8,1e-08]
[1757070603190,11.58520663,4418.9,4418.8,1e-08]
[1757070604309,6.92820663,4418.9,4418.8,1e-08]
[1757070604484,11.14550663,4418.9,4418.8,1e-08]
[1757070605706,7.23450663,4418.9,4418.8,1e-08]
[1757070605921,3.92820663,4418.9,4418.8,0.30640001]
[1757070606071,3.92820663,4418.9,4418.8,0.79440001]
[1757070606271,7.83520663,4418.9,4418.8,0.79440001]
[1757070606473,10.83520663,4418.9,4418.8,0.79440001]
[1757070607107,10.83600663,4418.9,4418.8,1e-08]
[1757070607501,11.58000663,4418.9,4418.8,1e-08]
[1757070608681,11.14230663,4418.9,4418.8,1e-08]
[1757070609014,7.67300663,4418.9,4418.8,1e-08]
[1757070609181,11.58300663,4418.9,4418.8,1e-08]
[1757070610076,12.05120663,4418.9,4418.8,1e-08]
[1757070610293,2.26336517,4418.2,4418.1,1e-08]
[1757070610524,9.17136517,4418.2,4418.1,1e-08]
[1757070610712,10.35596517,4418.2,4418.1,1e-08]
[1757070611109,2.2635701,4417.8,4417.7,1e-08]
[1757070611430,10.8415701,4417.8,4417.7,1e-08]
[1757070611923,11.1270701,4417.8,4417.7,1e-08]
[1757070612125,10.8415701,4417.8,4417.7,1e-08]
[1757070612290,10.8395701,4417.8,4417.7,0.78930001]
[1757070613338,11.1250701,4417.8,4417.7,1e-08]
[1757070613837,10.8395701,4417.8,4417.7,1e-08]
[1757070614140,11.1250701,4417.8,4417.7,1e-08]
[1757070614440,10.8395701,4417.8,4417.7,1e-08]
[1757070614849,11.1230701,4417.8,4417.7,1e-08]
[1757070615055,11.6168701,4417.8,4417.7,1e-08]
[1757070615212,12.0477701,4417.8,4417.7,1e-08]
[1757070615413,12.5159701,4417.8,4417.7,1e-08]
[1757070616541,2.26495436,4415.1,4415.0,0.459]
[1757070616716,2.196,4415.1,4415.0,0.7545]
[1757070616914,1.668,4415.3,4415.0,0.7545]
[1757070617130,3.0,4415.1,4415.0,0.2955]
[1757070617741,3.0,4415.1,4415.0,0.7545]
[1757070618322,6.926,4415.1,4415.0,1.2483]
[1757070620441,3.0,4415.1,4415.0,1.2483]
[1757070620618,6.924,4415.1,4415.0,1.31918981]
[1757070623652,9.18895436,4415.1,4415.0,0.36638981]
[1757070623955,9.30175436,4415.1,4415.0,0.07088981]
[1757070625038,9.30175436,4415.1,4415.0,0.36638981]
[1757070625262,3.1128,4415.1,4415.0,0.82538981]
[1757070625467,3.1128,4415.1,4415.0,1.31918981]
[1757070625675,7.0308,4415.1,4415.0,1.31918981]
[1757070627967,6.9152,4415.3,4415.2,0.36638981]
[1757070628178,6.915,4415.3,4415.2,0.36638981]
[1757070628698,6.915,4415.3,4415.2,0.82538981]
[1757070628897,6.914,4415.3,4415.2,1.31918981]
[1757070629963,6.914,4415.3,4415.2,0.86018981]
[1757070630162,6.914,4415.3,4415.2,0.36638981]
[1757070631099,6.914,4415.3,4415.2,0.82538981]
[1757070632391,6.914,4415.3,4415.2,0.36638981]
[1757070633588,6.908,4415.3,4415.2,1.31918981]
[1757070634310,3.0,4415.3,4415.2,3.58409287]
[1757070634673,3.0,4415.3,4415.2,1.31918981]
[1757070635198,3.0,4415.3,4415.2,1.31918353]
[1757070635606,3.0,4415.3,4415.2,3.58408659]
[1757070636127,0.1128,4415.8,4415.2,1.31918353]
[1757070636330,0.1128,4415.8,4415.4,2.26476858]
[1757070636331,2.8238,4415.8,4415.4,2.26476858]
[1757070636507,3.0,4415.7,4415.5,0.07088353]
[1757070636715,3.0,4415.7,4415.6,0.07088353]
[1757070636892,3.0,4415.7,4415.6,0.36638353]
[1757070638623,6.27939983,4415.8,4415.6,0.36638353]
[1757070638783,4.0148,4415.8,4415.7,0.07088353]
[1757070639126,6.27939531,4415.8,4415.7,0.07088353]
[1757070639327,6.27939531,4415.8,4415.7,0.35618353]
[1757070639628,4.0148,4415.8,4415.7,0.35618353]
[1757070640328,6.27939531,4415.8,4415.7,0.07088353]
[1757070640828,4.0148,4415.8,4415.7,0.07088353]
[1757070641135,6.27939531,4415.8,4415.7,0.07088353]
[1757070641635,4.0148,4415.8,4415.7,0.07088353]
[1757070642711,6.27939531,4415.8,4415.7,0.07088353]
[1757070642910,4.0148,4415.8,4415.7,0.07088353]
[1757070643235,4.0148,4415.8,4415.7,0.35618353]
[1757070643801,0.1128,4415.8,4415.7,0.35618353]
[1757070644126,5.934,4415.8,4415.7,1.28008353]
[1757070644328,5.934,4415.8,4415.7,0.35618353]
[1757070644519,5.934,4415.8,4415.7,0.2853]
[1757070645597,3.0,4415.8,4415.7,0.2853]
[1757070645803,3.0,4415.8,4415.7,1.2092]
[1757070646415,3.0,4415.8,4415.7,0.7612]
[1757070646731,3.0,4415.8,4415.7,0.2853]
[1757070647519,3.001,4415.8,4415.7,0.2853]
[1757070649522,0.3055,4415.8,4415.3,2.3776434]
[1757070649698,3.3055,4415.8,4415.3,0.1128]
[1757070649898,0.452,4415.7,4415.3,0.1128]
[1757070650095,3.3045,4415.4,4415.1,0.004]
[1757070650340,7.1925,4415.4,4415.1,0.004]
[1757070650538,3.888,4415.3,4415.1,0.004]
[1757070650899,3.888,4415.6,4415.2,0.2853]
[1757070651133,3.0,4415.6,4415.2,3.47405897]
[1757070651636,3.0,4415.6,4415.2,0.2853]
[1757070651835,3.0,4415.6,4415.2,2.55016743]
[1757070652141,3.0,4415.6,4415.3,2.26484893]
[1757070652312,0.1128,4415.7,4415.5,0.2853]
[1757070652513,3.0,4415.7,4415.6,0.448]
[1757070652942,0.001,4415.8,4415.6,1.2092]
[1757070653843,0.001,4415.8,4415.6,2.549983]
[1757070654542,0.001,4415.8,4415.7,2.2646466]
[1757070655365,0.001,4415.8,4415.4,0.1128]
[1757070655520,0.453,4415.8,4415.4,0.1128]
[1757070656072,0.4522,4415.8,4415.5,2.26471033]
[1757070656359,0.4522,4415.8,4415.7,2.5499466]
[1757070656360,0.0002,4415.8,4415.7,2.5499466]
[1757070657333,0.0002,4415.8,4415.7,2.9979466]
[1757070657539,0.0002,4415.8,4415.7,2.5499466]
[1757070658749,0.0002,4415.8,4415.6,2.26468226]
[1757070658949,0.0002,4415.8,4415.7,2.2646466]
[1757070659264,0.0002,4415.8,4415.7,2.5499466]
[1757070660265,0.0002,4415.8,4415.7,6.84848766]
[1757070660621,0.0002,4415.8,4415.7,7.32438766]
[1757070660864,0.0002,4415.8,4415.7,12.68054087]
[1757070661032,0.0002,4415.8,4415.7,12.79334087]
[1757070661361,0.0002,4415.8,4415.7,11.86944087]
[1757070661857,0.0002,4415.8,4415.7,12.79334087]
[1757070663579,0.001,4416.3,4416.2,3.05639019]
[1757070663864,0.001,4416.3,4416.2,11.76401624]
[1757070664067,0.001,4416.3,4416.2,12.97321624]
[1757070664227,0.001,4416.3,4416.2,13.08601624]
[1757070665494,0.001,4416.3,4416.2,12.16211624]
[1757070665700,0.001,4416.3,4416.2,11.63003125]
[1757070665899,0.3055,4416.3,4415.4,2.26478995]
[1757070666061,0.3055,4416.3,4416.1,6.56297504]
[1757070666393,0.001,4416.3,4416.2,2.54969019]
[1757070666568,0.001,4416.3,4416.2,6.56293125]
[1757070666760,0.001,4416.3,4416.2,2.26439019]
[1757070666962,0.001,4416.3,4416.2,6.43369019]
[1757070667160,0.001,4416.3,4416.2,8.19887767]
[1757070668089,0.001,4416.3,4416.2,8.99087767]
[1757070671001,0.001,4416.3,4416.2,8.06697767]
[1757070671402,0.001,4416.3,4416.2,8.97087767]
[1757070672168,0.001,4416.3,4416.2,4.18297767]
[1757070672363,0.001,4416.3,4416.2,8.06397767]
[1757070672608,0.3122,4416.3,4415.9,1.669]
[1757070672778,0.3122,4416.3,4415.8,3.884]
[1757070672779,0.9444,4416.2,4415.8,3.884]
[1757070673099,0.9444,4416.1,4415.9,3.884]
[1757070673303,1.2556,4416.0,4415.9,3.884]
[1757070675004,1.2556,4416.0,4415.9,6.14854403]
[1757070675211,0.3112,4416.0,4415.2,1.669]
[1757070675516,0.7824,4416.0,4415.6,2.26469093]
[1757070675810,0.9444,4415.9,4415.6,2.26469093]
[1757070676010,0.3112,4415.7,4415.5,6.26454683]
[1757070676316,0.4732,4415.6,4415.5,3.9998]
[1757070676485,1.2556,4415.6,4415.5,0.1128]
[1757070677408,6.52029788,4415.6,4415.5,0.1128]
[1757070678104,6.52029788,4415.6,4415.3,0.004]
[1757070678105,2.26480047,4415.4,4415.3,0.004]
[1757070678703,6.52040047,4415.4,4415.3,0.004]
[1757070680407,10.41240047,4415.4,4415.3,0.004]
[1757070680921,10.41140047,4415.4,4415.3,0.004]
[1757070682348,10.41040047,4415.4,4415.3,0.004]
[1757070682999,8.1456,4415.4,4415.3,0.004]
[1757070683632,10.41040047,4415.4,4415.3,0.004]
[1757070683795,6.51960047,4415.4,4415.3,0.004]
[1757070684191,10.40660047,4415.4,4415.3,0.004]
[1757070686035,0.3104,4415.4,4415.3,0.004]
[1757070686245,1.669,4415.6,4415.3,0.2988]
[1757070686549,3.0,4415.4,4415.3,0.2988]
[1757070686716,3.0,4415.4,4415.3,0.004]
[1757070686912,3.3112,4415.4,4415.3,0.004]
[1757070687751,3.0,4415.4,4415.3,0.2988]
[1757070688046,3.0,4415.5,4415.3,0.2988]
[1757070688211,3.0,4415.5,4415.3,0.004]
[1757070689047,3.0,4415.5,4415.4,0.2948]
[1757070689448,1.669,4415.6,4415.4,0.2948]
[1757070689646,4.669,4415.6,4415.4,0.2948]
[1757070689948,0.1128,4415.7,4415.3,0.004]
[1757070690129,0.1128,4415.7,4415.5,0.2948]
[1757070690130,3.0,4415.6,4415.5,0.2948]
[1757070690452,0.1128,4415.7,4415.5,2.55951346]
[1757070690758,0.001,4415.8,4415.6,3.16859788]
[1757070690937,0.001,4415.8,4415.5,3.08748173]
[1757070691538,0.001,4415.8,4415.6,2.26469531]
[1757070691945,0.001,4415.8,4415.7,0.2948]
[1757070692328,0.001,4415.8,4415.4,0.1128]
[1757070692651,0.4732,4415.7,4415.4,0.1128]
[1757070692856,0.3112,4415.5,4415.4,0.1128]
[1757070693332,3.7844,4415.5,4415.3,0.004]
[1757070693528,0.9444,4415.4,4415.3,0.004]
[1757070693922,1.2556,4415.4,4415.3,0.004]
[1757070694256,6.52040047,4415.4,4415.3,0.004]
[1757070694618,10.39940047,4415.4,4415.3,0.004]
[1757070695053,9.45500047,4415.4,4415.3,0.004]
[1757070695261,5.57600047,4415.4,4415.3,0.004]
[1757070695436,9.92820047,4415.4,4415.3,0.004]
[1757070695824,10.39940047,4415.4,4415.3,0.004]
[1757070696148,6.52040047,4415.4,4415.3,0.004]
[1757070696323,10.39940047,4415.4,4415.3,0.004]
[1757070697359,7.1902,4415.4,4415.3,0.004]
[1757070698018,3.3112,4415.4,4415.3,0.004]
[1757070698222,7.1872,4415.4,4415.3,0.004]
[1757070698857,3.0,4415.4,4415.3,0.004]
[1757070699029,3.0,4415.4,4415.3,0.2988]
[1757070699429,3.3075,4415.4,4415.3,0.004]
[1757070699664,5.57230047,4415.4,4415.3,0.004]
[1757070700358,6.47660047,4415.4,4415.3,0.004]
[1757070700563,10.35160047,4415.4,4415.3,0.004]
[1757070701068,7.1825,4415.4,4415.3,0.004]
[1757070701468,6.873,4415.4,4415.3,0.004]
[1757070701769,3.0,4415.4,4415.3,0.004]
[1757070701940,3.0,4415.4,4415.3,1.2399]
[1757070702139,3.0,4415.4,4415.3,0.3073]
[1757070703564,3.0,4415.4,4415.3,0.004]
[1757070704167,3.0,4415.4,4415.3,0.3073]
[1757070704537,3.0,4415.4,4415.3,1.2399]
[1757070705132,3.0,4415.5,4415.3,1.2399]
[1757070705329,3.0,4415.6,4415.4,2.37756167]
[1757070705531,0.001,4415.8,4415.5,1.2359]
[1757070705738,3.001,4415.8,4415.5,1.2359]
[1757070705936,3.001,4415.8,4415.6,0.4799]
[1757070706136,0.68073597,4415.7,4415.6,0.4799]
[1757070706339,0.68073597,4415.7,4415.4,0.1128]
[1757070706558,0.68073597,4415.7,4415.6,0.3033]
[1757070707371,0.68073597,4415.7,4415.3,0.004]
[1757070707372,8.02618301,4415.7,4415.3,0.004]
[1757070707990,3.9043,4415.6,4415.3,0.004]
[1757070708280,0.1128,4415.5,4415.3,0.004]
[1757070708578,2.37755563,4415.5,4415.3,0.004]
[1757070708784,0.1128,4415.5,4415.3,0.004]
[1757070708944,6.24555024,4415.5,4415.3,0.004]
[1757070709143,0.3075,4415.4,4415.3,0.004]
[1757070710485,2.57230047,4415.4,4415.3,0.004]
[1757070710676,3.47660047,4415.4,4415.3,0.004]
[1757070710880,1.2118,4415.4,4415.3,0.004]
[1757070711389,0.752,4415.4,4415.3,0.004]
[1757070711595,0.7512,4415.4,4415.3,0.004]
[1757070711756,3.01600047,4415.4,4415.3,0.004]
[1757070712358,3.47580047,4415.4,4415.3,0.004]
[1757070712692,4.1226,4415.5,4415.3,0.3073]
[1757070713291,4.1226,4415.5,4415.3,0.004]
[1757070713689,2.57230047,4415.4,4415.3,0.004]
[1757070713991,3.01680047,4415.4,4415.3,0.004]
[1757070714296,0.752,4415.4,4415.3,0.004]
[1757070714491,0.3075,4415.4,4415.3,0.004]
[1757070714701,4.1226,4415.5,4415.3,0.004]
[1757070714993,6.38736115,4415.5,4415.3,0.004]
[1757070715569,0.3075,4415.4,4415.3,0.004]
[1757070716383,0.2546,4415.5,4415.3,0.3073]
[1757070716582,0.1418,4415.5,4415.3,0.3073]
[1757070717167,2.40656636,4415.5,4415.3,0.004]
[1757070717499,0.1418,4415.5,4415.4,0.3033]
[1757070718494,2.71405036,4415.5,4415.3,0.004]
[1757070718796,0.4493,4415.5,4415.3,0.004]
[1757070719159,3.1585662,4415.5,4415.3,0.004]
[1757070719364,0.8938,4415.5,4415.3,0.004]
[1757070719597,0.1418,4415.5,4415.3,0.004]
[1757070720699,0.3075,4415.4,4415.3,0.004]
[1757070721474,0.1418,4415.5,4415.3,0.004]
[1757070721704,0.1418,4415.5,4415.3,0.3073]
[1757070723189,0.1418,4415.5,4415.3,0.7872]
[1757070723502,0.1418,4415.5,4415.3,3.50473929]
[1757070723906,0.1418,4415.5,4415.3,1.2399]
[1757070726499,0.1418,4415.5,4415.4,0.4799]
[1757070727018,0.1418,4415.5,4415.4,0.3033]
[1757070727180,0.1418,4415.5,4415.3,0.004]
[1757070728606,3.47660047,4415.4,4415.3,0.004]
[1757070728813,10.32660047,4415.4,4415.3,0.004]
[1757070732807,15.56229231,4415.4,4415.3,0.004]
[1757070734110,10.32660047,4415.4,4415.3,0.004]
[1757070734495,9.41930047,4415.4,4415.3,0.004]
[1757070735027,9.88460047,4415.4,4415.3,0.004]
[1757070735323,9.41930047,4415.4,4415.3,0.004]
[1757070736022,9.88460047,4415.4,4415.3,0.004]
[1757070736740,10.36980047,4415.4,4415.3,0.004]
[1757070739397,10.36900047,4415.4,4415.3,0.004]
[1757070739797,10.73251041,4415.4,4415.3,1e-08]
[1757070740197,10.36900047,4415.4,4415.3,1e-08]
[1757070740392,10.36500047,4415.4,4415.3,1e-08]
[1757070743653,10.72851041,4415.4,4415.3,1e-08]
[1757070745334,10.89636343,4415.4,4415.3,1e-08]
[1757070745870,7.05336343,4415.4,4415.3,1e-08]
[1757070746044,10.89336343,4415.4,4415.3,1e-08]
[1757070747248,7.05336343,4415.4,4415.3,1e-08]
[1757070747569,10.89236343,4415.4,4415.3,1e-08]
[1757070747730,9.40950047,4415.4,4415.3,1e-08]
[1757070748368,9.87480047,4415.4,4415.3,1e-08]
[1757070748587,10.36000047,4415.4,4415.3,1e-08]
[1757070750856,6.52200047,4415.4,4415.3,1e-08]
[1757070751178,10.35800047,4415.4,4415.3,1e-08]
[1757070751359,9.87180047,4415.4,4415.3,1e-08]
[1757070752082,9.40650047,4415.4,4415.3,1e-08]
[1757070752249,9.09980047,4415.4,4415.3,0.31270001]
[1757070752789,5.26480047,4415.4,4415.3,0.31270001]
[1757070752956,9.09980047,4415.4,4415.3,0.31270001]